bitfinex/quotes_SOLUSD_20240808
["timestamp","ask_amount","ask_price","bid_price","bid_amount"]
[1723094424977,454.2628107,153.2,153.06,22.5706]
[1723094425184,6.0124,153.19,153.06,22.5706]
[1723094425479,45.34,153.18,153.06,22.5706]
[1723094426205,45.34,153.18,153.07,20.0]
[1723094426561,45.34,153.18,153.06,22.5706]
[1723094427661,45.34,153.18,153.07,20.0]
[1723094429694,388.9228107,153.17,153.07,20.0]
[1723094429860,0.17,153.16,153.06,20.0]
[1723094430887,16.4528,153.15,153.06,20.0]
[1723094431187,388.9228107,153.17,153.06,20.0]
[1723094431398,388.9228107,153.17,153.07,46.6461229]
[1723094431600,388.9228107,153.17,153.09,22.1718]
[1723094431896,388.9228107,153.17,153.1,65.34]
[1723094432674,388.9228107,153.17,153.1,65.17]
[1723094432884,388.9228107,153.17,153.1,20.17]
[1723094433085,405.5589107,153.17,153.06,20.0]
[1723094433294,405.5589107,153.17,153.07,45.17]
[1723094433475,405.5589107,153.17,153.08,20.0]
[1723094433659,405.5589107,153.17,153.09,0.17]
[1723094434289,405.5589107,153.17,153.08,20.0]
[1723094434474,405.5589107,153.17,153.06,20.0]
[1723094435214,405.5589107,153.17,153.05,20.0]
[1723094435494,6.6067,153.16,153.05,26.81860261]
[1723094435701,395.5295107,153.16,153.05,6.81860261]
[1723094437276,395.3595107,153.16,153.06,0.17]
[1723094437476,0.17,153.15,153.06,0.17]
[1723094437792,0.17,153.15,153.06,20.17]
[1723094438165,424.0795107,153.16,153.07,1.30639338]
[1723094438374,424.0795107,153.16,153.08,1.30624747]
[1723094438579,424.0795107,153.16,153.06,20.17]
[1723094439193,424.0795107,153.16,153.06,20.0]
[1723094439565,28.72,153.14,153.05,6.81860261]
[1723094439789,28.72,153.12,153.0,45.3027]
[1723094440201,28.72,153.12,153.02,6.81969304]
[1723094440412,28.72,153.14,153.02,35.53969304]
[1723094440694,35.1567,153.16,153.04,28.72]
[1723094440999,35.1567,153.16,153.05,0.17]
[1723094441182,35.1567,153.16,153.05,65.34]
[1723094442877,6.4367,153.16,153.07,28.72]
[1723094443068,6.4367,153.16,153.08,20.17]
[1723094443497,6.4367,153.16,153.08,20.0]
[1723094443797,28.72,153.13,153.02,6.81969304]
[1723094443988,0.17,153.12,153.02,6.81969304]
[1723094444770,28.72,153.11,153.02,6.81969304]
[1723094444994,0.17,153.1,153.02,6.81969304]
[1723094445286,28.72,153.11,153.02,6.81969304]
[1723094446700,389.1,153.12,153.03,20.0]
[1723094447197,389.1,153.12,153.03,48.72]
[1723094447372,389.1,153.12,153.04,1.47645424]
[1723094447700,389.1,153.12,153.04,0.17]
[1723094448202,389.1,153.12,153.04,45.17]
[1723094449502,389.1,153.12,153.05,50.19630937]
[1723094449712,389.1,153.12,153.06,45.17]
[1723094449993,389.1,153.12,153.06,0.17]
[1723094450191,389.1,153.12,153.05,20.0]
[1723094450387,389.1,153.12,153.03,6.82041343]
[1723094450698,417.82,153.15,153.04,20.0]
[1723094451298,0.17,153.14,153.04,20.0]
[1723094451885,28.72,153.13,153.04,20.0]
[1723094453878,0.17,153.14,153.05,0.17]
[1723094454387,389.1,153.15,153.06,28.72]
[1723094454583,6.4367,153.16,153.08,28.72]
[1723094454802,6.4367,153.16,153.09,65.17]
[1723094455099,16.6361,153.17,153.09,65.17]
[1723094455507,6.6042,153.2,153.1,28.89]
[1723094455796,6.6042,153.2,153.11,65.0]
[1723094456001,35.3242,153.2,153.11,20.0]
[1723094456190,35.3242,153.2,153.12,0.17]
[1723094456510,44.9366,153.22,153.1,30.02588587]
[1723094456683,44.9366,153.22,153.11,66.64579361]
[1723094456879,44.9366,153.22,153.11,65.34]
[1723094457396,44.9366,153.22,153.11,20.17]
[1723094457584,28.72,153.18,153.07,16.5971]
[1723094458303,28.72,153.2,153.09,28.72]
[1723094458801,0.17,153.19,153.09,28.72]
[1723094458999,16.2166,153.22,153.13,28.72]
[1723094459205,16.2166,153.22,153.14,45.17]
[1723094459396,16.2166,153.22,153.14,0.17]
[1723094459595,16.2166,153.22,153.14,45.17]
[1723094459889,6.5521,153.24,153.14,45.17]
[1723094460406,6.5521,153.24,153.09,34.9723]
[1723094460407,28.72,153.21,153.09,34.9723]
[1723094460700,28.72,153.21,153.1,45.34]
[1723094461778,28.72,153.19,153.09,6.2523]
[1723094464582,389.1,153.15,153.05,6.82925876]
[1723094465607,389.1,153.15,153.06,0.17]
[1723094465792,389.1,153.15,153.06,45.17]
[1723094465993,389.1,153.15,153.06,46.47630456]
[1723094466394,389.1,153.15,153.06,45.17]
[1723094467215,389.1,153.15,153.07,20.0]
[1723094467507,389.1,153.15,153.08,45.17]
[1723094468406,276.6903,153.21,153.09,0.17]
[1723094468586,23.0903,153.21,153.09,0.17]
[1723094468826,26.5275,153.2,153.08,45.17]
[1723094469106,6.5293,153.16,153.05,6.82925876]
[1723094469297,6.529,153.17,153.06,20.17]
[1723094469480,20.0,153.2,153.06,0.17]
[1723094469678,6.5291,153.16,153.06,0.17]
[1723094469901,20.17,153.15,153.05,0.17]
[1723094470993,0.17,153.15,153.05,0.17]
[1723094471188,20.0,153.17,153.05,0.34]
[1723094471397,0.17,153.16,153.05,0.34]
[1723094471597,0.17,153.16,153.05,45.34]
[1723094471816,20.17,153.16,153.05,45.34]
[1723094472312,0.17,153.16,153.05,45.34]
[1723094474013,0.17,153.16,153.05,45.17]
[1723094474320,0.17,153.16,153.06,45.0]
[1723094474515,20.0,153.17,153.05,45.17]
[1723094474701,20.0,153.17,153.07,1.30636576]
[1723094475017,20.0,153.17,153.08,1.47616555]
[1723094475507,20.0,153.17,153.09,0.17]
[1723094475715,389.1,153.18,153.09,0.17]
[1723094475910,389.1,153.18,153.08,0.34]
[1723094477111,389.1,153.18,153.06,20.0]
[1723094477412,65.34,153.17,153.05,20.0]
[1723094478389,389.1,153.16,153.04,6.6315]
[1723094478712,22.5478,153.13,153.03,15.2942]
[1723094479585,0.17,153.12,153.03,15.2942]
[1723094479987,26.7009,153.12,153.03,15.2942]
[1723094480314,20.17,153.12,153.03,15.2942]
[1723094480517,0.17,153.12,153.03,15.2942]
[1723094480816,22.5478,153.13,153.03,15.2942]
[1723094481315,0.17,153.12,153.03,15.2942]
[1723094482893,22.5478,153.13,153.03,15.2942]
[1723094483098,0.17,153.12,153.03,15.2942]
[1723094484516,389.1,153.11,153.01,6.81061357]
[1723094484699,20.0,153.1,152.96,15.4873]
[1723094484901,20.0,153.1,152.97,6.8023418]
[1723094484902,0.34,153.09,152.97,6.8023418]
[1723094485102,409.1,153.1,152.97,6.8023418]
[1723094485307,0.17,153.09,152.97,6.8023418]
[1723094485708,45.34,153.09,152.97,6.8023418]
[1723094486209,51.8721,153.09,152.98,20.0]
[1723094486396,20.0,153.08,152.97,6.8023418]
[1723094486591,21.4655,153.06,152.96,15.4873]
[1723094486805,454.44,153.05,152.94,6.79462728]
[1723094487107,6.5356,153.01,152.9,0.8228107]
[1723094487314,434.27,153.0,152.9,0.8228107]
[1723094487706,440.806,153.0,152.9,0.8228107]
[1723094487899,26.7064,152.99,152.9,0.8228107]
[1723094488106,6.4367,152.97,152.9,0.8228107]
[1723094488595,389.1,153.0,152.91,1.3079334]
[1723094488844,389.1,153.0,152.9,0.8228107]
[1723094489199,389.1,153.0,152.91,0.17]
[1723094489722,389.1,153.0,152.91,45.34]
[1723094490409,389.1,153.0,152.92,20.0]
[1723094490609,389.1,153.0,152.93,45.34]
[1723094491795,10.54945049,153.05,152.95,6.4192]
[1723094492098,6.3528,153.07,152.96,66.64701191]
[1723094492307,16.5071,153.1,152.96,66.64701191]
[1723094493032,6.5321,153.09,152.96,66.64701191]
[1723094493217,6.5338,153.05,152.95,6.4192]
[1723094493526,36.93,153.08,152.96,0.17]
[1723094493726,10.67383468,153.09,152.96,0.17]
[1723094493929,47.60383468,153.09,152.96,0.17]
[1723094494229,6.5342,153.04,152.94,16.3928]
[1723094494402,0.17,153.03,152.91,6.5316]
[1723094494742,389.1,153.04,152.91,6.5316]
[1723094495101,389.1,153.04,152.92,1.30738167]
[1723094495298,389.1,153.04,152.93,1.30737328]
[1723094495530,389.1,153.04,152.91,6.5316]
[1723094495725,0.17,153.03,152.92,65.17]
[1723094495900,0.17,153.03,152.92,20.0]
[1723094496300,51.8747,153.03,152.92,20.0]
[1723094496529,45.34,153.03,152.92,20.0]
[1723094497505,45.17,153.03,152.92,20.0]
[1723094497719,389.1,153.04,152.93,45.34]
[1723094498123,0.17,153.05,152.93,45.34]
[1723094498331,0.17,153.05,152.94,20.0]
[1723094498529,0.17,153.05,152.95,0.17]
[1723094498530,20.17,153.05,152.95,0.17]
[1723094500217,20.17,153.05,152.94,20.0]
[1723094500522,45.17,153.04,152.91,6.5316]
[1723094500732,0.17,153.03,152.92,20.17]
[1723094501444,0.17,153.03,152.92,20.0]
[1723094501625,6.5351,153.02,152.91,6.5316]
[1723094501807,45.34,153.01,152.91,6.5316]
[1723094502013,0.17,153.01,152.91,6.5316]
[1723094503821,20.17,153.01,152.91,6.5316]
[1723094504045,45.17,153.0,152.91,6.5316]
[1723094504218,0.17,152.99,152.91,6.5316]
[1723094504614,389.1,153.01,152.91,6.5316]
[1723094504818,389.1,153.01,152.92,0.17]
[1723094505318,389.1,153.01,152.92,65.17]
[1723094505520,389.1,153.01,152.92,45.17]
[1723094505815,389.1,153.01,152.92,0.17]
[1723094506009,389.1,153.01,152.92,20.17]
[1723094506216,45.0,153.0,152.91,6.5316]
[1723094506446,45.0,153.0,152.9,0.8228107]
[1723094506447,20.34,152.99,152.9,0.8228107]
[1723094506611,45.0,152.98,152.9,0.8228107]
[1723094506935,0.34,152.97,152.9,0.8228107]
[1723094507243,20.34,152.97,152.9,0.8228107]
[1723094507539,45.0,152.96,152.9,0.8228107]
[1723094507719,20.17,152.95,152.9,0.8228107]
[1723094507914,45.17,152.94,152.9,0.8228107]
[1723094508447,0.17,152.93,152.9,0.8228107]
[1723094509643,6.5397,152.92,152.9,0.8228107]
[1723094509942,45.34,152.91,152.9,0.8228107]
[1723094510742,0.17,152.91,152.9,0.8228107]
[1723094511042,20.0,152.92,152.9,0.8228107]
[1723094511344,0.17,152.91,152.9,0.8228107]
[1723094514740,389.1,152.94,152.9,0.8228107]
[1723094515242,36.93,153.0,152.9,0.8228107]
[1723094515243,398.06623143,153.0,152.9,0.8228107]
[1723094515420,395.4458,153.0,152.9,0.8228107]
[1723094516119,401.9818,153.0,152.9,0.8228107]
[1723094516321,395.4458,153.0,152.9,0.8228107]
[1723094516823,389.1,153.0,152.9,0.8228107]
[1723094517028,389.1,153.0,152.91,0.17]
[1723094517947,389.1,153.0,152.9,20.8228107]
[1723094518444,0.34,152.99,152.9,20.8228107]
[1723094518650,45.34,152.99,152.9,0.8228107]
[1723094519525,82.27,152.99,152.9,0.8228107]
[1723094519742,20.0,152.98,152.9,0.8228107]
[1723094519936,45.34,152.97,152.9,0.8228107]
[1723094520137,20.0,152.96,152.9,0.8228107]
[1723094520335,0.17,152.95,152.9,0.8228107]
[1723094520530,20.0,152.96,152.9,0.8228107]
[1723094521131,20.0,152.97,152.9,0.8228107]
[1723094521332,45.34,152.96,152.9,0.8228107]
[1723094521544,20.0,152.97,152.9,0.8228107]
[1723094521748,20.0,152.98,152.9,0.8228107]
[1723094522831,391.80928836,153.0,152.9,0.8228107]
[1723094523026,389.1,153.0,152.9,0.8228107]
[1723094523445,395.6359,153.0,152.9,0.8228107]
[1723094524027,6.5363,152.99,152.9,0.8228107]
[1723094524347,45.34,152.98,152.9,0.8228107]
[1723094524555,0.34,152.98,152.9,0.8228107]
[1723094525260,26.8772,152.98,152.9,0.8228107]
[1723094525460,45.0,152.97,152.9,0.8228107]
[1723094525642,0.34,152.96,152.9,0.8228107]
[1723094525841,6.878,152.96,152.9,0.8228107]
[1723094526031,45.0,152.95,152.9,0.8228107]
[1723094526356,0.34,152.96,152.9,0.8228107]
[1723094526555,20.34,152.96,152.9,0.8228107]
[1723094527556,20.17,152.96,152.9,0.8228107]
[1723094527759,45.0,152.95,152.9,0.8228107]
[1723094528049,409.27,152.94,152.9,0.8228107]
[1723094528362,51.539,152.93,152.9,0.8228107]
[1723094528539,0.17,152.92,152.9,0.8228107]
[1723094528737,0.34,152.92,152.9,0.8228107]
[1723094528938,0.34,152.92,152.83,6.1951]
[1723094528939,395.9793,152.92,152.83,6.1951]
[1723094529128,45.0,152.91,152.83,6.1951]
[1723094529333,0.17,152.9,152.83,6.1951]
[1723094529555,409.1,152.92,152.83,6.1951]
[1723094530736,389.1,152.92,152.83,6.1951]
[1723094530937,389.1,152.92,152.84,0.17]
[1723094531135,389.1,152.92,152.84,45.17]
[1723094531864,389.1,152.92,152.83,6.1951]
[1723094532366,45.17,152.91,152.83,6.1951]
[1723094532539,389.1,152.92,152.83,6.1951]
[1723094532956,0.17,152.91,152.83,6.1951]
[1723094533936,0.17,152.92,152.83,6.1951]
[1723094534138,65.34,152.93,152.83,6.1951]
[1723094534369,20.34,152.93,152.83,6.1951]
[1723094534669,389.1,152.95,152.84,15.8935]
[1723094534849,389.1,152.95,152.85,46.47818291]
[1723094535165,389.1,152.95,152.86,1.30818291]
[1723094536273,389.1,152.95,152.85,45.17]
[1723094538366,642.7,152.99,152.86,22.64738261]
[1723094538666,389.1,152.99,152.87,65.34]
[1723094538897,389.1,152.99,152.88,15.1152]
[1723094539176,389.1,152.99,152.9,6.2279]
[1723094539365,10.44087404,153.04,152.92,16.105]
[1723094539549,10.44087404,153.04,152.93,45.34]
[1723094539768,10.44087404,153.04,152.93,0.17]
[1723094540071,10.44087404,153.04,152.92,16.105]
[1723094540373,6.5347,153.03,152.92,16.105]
[1723094540757,65.34,153.02,152.92,16.105]
[1723094541372,20.0,153.02,152.93,45.17]
[1723094541561,10.44087404,153.04,152.94,6.1877]
[1723094541869,10.44087404,153.04,152.95,0.17]
[1723094542077,10.44087404,153.04,152.96,15.4525]
[1723094542244,10.44087404,153.04,152.97,65.34]
[1723094542648,253.6,153.1,152.97,65.34]
[1723094543079,11.06257833,153.11,152.98,7.51778127]
[1723094543257,389.1,153.14,153.0,15.4525]
[1723094543446,253.6,153.16,153.02,6.2108]
[1723094543649,253.6,153.16,153.04,15.4525]
[1723094543862,253.6,153.16,153.05,45.17]
[1723094544057,10.58325754,153.18,153.07,6.5199]
[1723094544244,10.58325754,153.18,153.09,15.691]
[1723094544447,10.58325754,153.18,153.1,20.34]
[1723094544676,10.58325754,153.18,153.11,51.5895]
[1723094544971,642.7,153.22,153.12,0.34]
[1723094545168,389.1,153.22,153.12,0.34]
[1723094546056,10.69502325,153.27,153.13,1.30574178]
[1723094546258,10.69502325,153.27,153.14,0.34]
[1723094546451,10.69502325,153.27,153.14,20.34]
[1723094546667,0.8228107,153.28,153.16,52.9344]
[1723094546976,0.8228107,153.28,153.18,6.3229]
[1723094547156,0.8228107,153.28,153.19,0.17]
[1723094547349,0.8228107,153.28,153.19,46.47525325]
[1723094547676,0.8228107,153.28,153.19,45.17]
[1723094548355,0.8228107,153.28,153.18,6.3229]
[1723094548878,0.17,153.27,153.18,6.3229]
[1723094550350,6.5248,153.26,153.18,6.3229]
[1723094550573,6.5253,153.25,153.18,6.3229]
[1723094550762,0.17,153.24,153.16,16.0044]
[1723094550955,20.34,153.27,153.16,16.0044]
[1723094551250,45.0,153.26,153.16,16.0044]
[1723094551465,20.17,153.25,153.16,16.0044]
[1723094552352,20.0,153.25,153.16,16.0044]
[1723094552556,20.0,153.25,153.17,0.17]
[1723094552857,20.0,153.26,153.16,16.0044]
[1723094553556,389.27,153.27,153.16,16.0044]
[1723094553758,45.34,153.26,153.16,16.0044]
[1723094553970,45.17,153.26,153.16,16.0044]
[1723094554551,0.17,153.26,153.16,16.0044]
[1723094554777,0.17,153.26,153.17,1.47551108]
[1723094554970,389.1,153.27,153.18,1.3054553]
[1723094556253,389.1,153.27,153.19,0.34]
[1723094556447,389.1,153.27,153.19,46.64517298]
[1723094556648,389.1,153.27,153.18,20.0]
[1723094557149,389.1,153.27,153.17,20.17]
[1723094557578,0.8228107,153.28,153.17,20.17]
[1723094557879,0.17,153.27,153.17,20.17]
[1723094558256,0.8228107,153.28,153.17,20.17]
[1723094558466,0.8228107,153.28,153.18,1.30535562]
[1723094558766,0.8228107,153.28,153.19,0.17]
[1723094559678,0.8228107,153.28,153.17,20.0]
[1723094559856,0.8228107,153.28,153.18,0.17]
[1723094560050,0.8228107,153.28,153.18,1.47533937]
[1723094560248,0.8228107,153.28,153.18,46.47533937]
[1723094560456,0.8228107,153.28,153.19,0.17]
[1723094560655,0.8228107,153.28,153.2,6.4044]
[1723094560856,0.8228107,153.28,153.21,45.0]
[1723094561064,0.8228107,153.28,153.22,0.17]
[1723094561268,0.8228107,153.28,153.22,21.4749738]
[1723094561680,0.8228107,153.28,153.22,20.17]
[1723094562174,0.8228107,153.28,153.22,20.0]
[1723094562473,0.8228107,153.28,153.23,0.17]
[1723094562883,0.8228107,153.28,153.22,20.0]
[1723094563555,0.8228107,153.28,153.2,21.7414]
[1723094564381,0.8228107,153.28,153.2,15.337]
[1723094565482,0.8228107,153.28,153.2,21.3468]
[1723094565780,0.17,153.27,153.16,6.3191]
[1723094565988,0.34,153.27,153.16,6.3191]
[1723094566273,6.5248,153.26,153.16,6.3191]
[1723094566488,0.34,153.25,153.16,6.3191]
[1723094566678,65.34,153.25,153.16,6.3191]
[1723094566862,6.5259,153.24,153.16,6.3191]
[1723094567059,45.34,153.23,153.16,6.3191]
[1723094567268,45.0,153.24,153.16,6.3191]
[1723094567478,0.17,153.22,153.16,6.3191]
[1723094567972,45.17,153.22,153.16,6.3191]
[1723094569083,6.5276,153.2,153.12,6.3644]
[1723094569267,45.0,153.19,153.12,6.3644]
[1723094569467,45.17,153.19,153.12,6.3644]
[1723094569869,0.17,153.19,153.12,6.3644]
[1723094570084,0.17,153.21,153.12,6.3644]
[1723094570278,51.8665,153.22,153.12,6.3644]
[1723094570785,20.0,153.21,153.12,6.3644]
[1723094570992,434.44,153.2,153.07,13.17374772]
[1723094571291,6.5291,153.16,153.07,6.3732]
[1723094571493,71.8696,153.15,153.07,6.3732]
[1723094571786,6.53,153.14,153.07,6.3732]
[1723094572085,45.34,153.13,153.06,16.5325]
[1723094572487,51.8706,153.13,153.06,16.5325]
[1723094572698,45.34,153.13,153.06,16.5325]
[1723094573174,389.1,153.14,153.06,16.5325]
[1723094573380,0.17,153.13,153.06,16.5325]
[1723094574286,45.34,153.13,153.06,16.5325]
[1723094574496,45.17,153.13,153.06,16.5325]
[1723094574673,0.17,153.13,153.06,16.5325]
[1723094575785,45.34,153.14,153.06,16.5325]
[1723094575965,26.5304,153.13,153.06,16.5325]
[1723094576173,51.8708,153.12,153.03,6.5772]
[1723094576477,20.0,153.11,153.03,6.5772]
[1723094577194,20.0,153.13,153.03,6.5772]
[1723094579593,2.61568163,153.18,153.04,1.30667448]
[1723094579898,6.5284,153.18,153.05,0.17]
[1723094580271,6.5287,153.17,153.05,0.17]
[1723094580471,6.5282,153.18,153.05,0.17]
[1723094580693,6.5282,153.18,153.05,0.34]
[1723094581001,395.6278,153.19,153.05,0.34]
[1723094581185,20.0,153.18,153.05,0.34]
[1723094581708,26.5283,153.18,153.05,0.34]
[1723094582001,26.5283,153.18,153.05,0.17]
[1723094582205,45.17,153.17,153.05,0.34]
[1723094582379,20.0,153.16,153.06,15.5966]
[1723094582781,45.17,153.15,153.06,15.5966]
[1723094583080,0.17,153.15,153.06,15.5966]
[1723094583278,20.0,153.16,153.06,15.5966]
[1723094583679,45.34,153.15,153.06,15.5966]
[1723094584085,20.0,153.16,153.06,15.5966]
[1723094584404,20.0,153.18,153.08,6.2841]
[1723094584774,6.5282,153.18,153.08,6.2841]
[1723094585291,26.5288,153.17,153.08,6.2841]
[1723094585797,45.34,153.16,153.08,6.2841]
[1723094586004,20.0,153.17,153.08,6.2841]
[1723094586381,0.17,153.16,153.08,6.2841]
[1723094586590,20.0,153.17,153.08,6.2841]
[1723094586798,20.0,153.18,153.08,6.2841]
[1723094587295,20.17,153.19,153.08,6.2841]
[1723094587603,45.0,153.18,153.08,6.2841]
[1723094587778,20.0,153.17,153.08,6.2841]
[1723094588930,0.17,153.16,153.08,6.2841]
[1723094589293,20.0,153.17,153.08,6.2841]
[1723094590773,45.17,153.16,153.08,6.2841]
[1723094591501,20.0,153.17,153.08,6.2841]
[1723094591690,0.17,153.16,153.08,6.2841]
[1723094591894,45.17,153.17,153.08,6.2841]
[1723094592208,45.34,153.17,153.08,6.2841]
[1723094592505,26.5294,153.16,153.08,6.2841]
[1723094592805,45.17,153.15,153.08,6.2841]
[1723094593909,20.0,153.16,153.08,6.2841]
[1723094594095,20.0,153.16,153.09,1.30580361]
[1723094594276,389.1,153.21,153.09,1.30580361]
[1723094594602,389.1,153.24,153.11,15.8759]
[1723094594795,389.1,153.24,153.12,7.69199944]
[1723094595103,398.26114743,153.24,153.12,6.3861]
[1723094595879,20.0,153.23,153.12,6.3861]
[1723094596899,389.1,153.24,153.12,6.3861]
[1723094597092,389.1,153.24,153.13,46.64548982]
[1723094597408,389.1,153.24,153.12,6.3861]
[1723094597590,395.6258,153.24,153.12,6.3861]
[1723094598208,20.0,153.23,153.12,6.3861]
[1723094598512,0.17,153.22,153.12,6.3861]
[1723094600213,391.68639351,153.27,153.13,20.0]
[1723094600393,20.0,153.26,153.15,16.3843]
[1723094600596,20.17,153.26,153.16,6.6344]
[1723094600909,6.5262,153.23,153.16,6.6344]
[1723094601505,0.17,153.24,153.16,6.6344]
[1723094601807,45.34,153.25,153.16,6.6344]
[1723094602206,26.5258,153.24,153.16,6.6344]
[1723094602381,45.17,153.23,153.16,6.6344]
[1723094602700,0.17,153.23,153.16,6.6344]
[1723094603386,45.34,153.23,153.16,6.6344]
[1723094603592,45.17,153.23,153.16,6.6344]
[1723094605489,0.17,153.23,153.16,6.6344]
[1723094605691,51.6961,153.23,153.16,6.6344]
[1723094605894,20.17,153.22,153.12,6.0301]
[1723094606190,45.17,153.21,153.12,6.0301]
[1723094606385,20.17,153.2,153.12,6.0301]
[1723094606613,45.17,153.19,153.12,6.0301]
[1723094606802,20.0,153.2,153.12,6.0301]
[1723094607320,20.0,153.24,153.12,7.33583852]
[1723094607499,20.0,153.24,153.13,0.17]
[1723094607690,48.69,153.24,153.13,0.17]
[1723094608219,48.69,153.24,153.12,34.7201]
[1723094608385,48.69,153.24,153.13,45.34]
[1723094608583,55.2158,153.24,153.12,34.7201]
[1723094608886,45.34,153.23,153.12,34.7201]
[1723094609086,20.0,153.22,153.12,34.7201]
[1723094609288,45.34,153.23,153.12,34.7201]
[1723094610596,45.34,153.23,153.12,6.0301]
[1723094610786,28.69,153.22,153.12,6.0301]
[1723094610989,45.34,153.21,153.12,6.0301]
[1723094611292,0.17,153.21,153.12,6.0301]
[1723094611614,0.17,153.21,153.12,34.7201]
[1723094612003,45.34,153.22,153.12,34.7201]
[1723094612197,45.34,153.22,153.12,6.0301]
[1723094612395,80.5569,153.22,153.12,6.0301]
[1723094612596,6.5271,153.21,153.12,6.0301]
[1723094612914,74.03,153.22,153.12,6.0301]
[1723094612915,6.5279,153.19,153.12,6.0301]
[1723094613123,65.17,153.18,153.12,6.0301]
[1723094613320,0.17,153.17,153.12,6.0301]
[1723094614928,20.0,153.18,153.12,6.0301]
[1723094615100,0.17,153.17,153.12,6.0301]
[1723094615503,0.17,153.18,153.12,6.0301]
[1723094615704,28.69,153.22,153.12,6.0301]
[1723094616017,65.34,153.21,153.12,6.0301]
[1723094616811,65.34,153.21,153.13,1.30587408]
[1723094616812,20.0,153.21,153.13,1.30587408]
[1723094616999,20.0,153.23,153.12,34.7201]
[1723094618425,45.34,153.22,153.12,34.7201]
[1723094618599,20.0,153.21,153.12,34.7201]
[1723094618802,28.69,153.26,153.14,28.69]
[1723094618998,6.5253,153.25,153.14,28.69]
[1723094619501,35.2157,153.24,153.13,16.0089]
[1723094620105,20.17,153.23,153.13,16.0089]
[1723094620514,20.17,153.23,153.14,28.69]
[1723094620718,400.05199236,153.27,153.17,22.6638]
[1723094621030,400.05199236,153.27,153.17,23.96932846]
[1723094621625,10.95199236,153.27,153.18,29.99552092]
[1723094622626,28.69,153.25,153.17,22.6638]
[1723094622921,0.34,153.24,153.17,22.6638]
[1723094623124,35.2163,153.23,153.17,22.6638]
[1723094623334,45.17,153.22,153.17,22.6638]
[1723094623927,51.6965,153.22,153.17,22.6638]
[1723094624312,45.17,153.22,153.17,22.6638]
[1723094624919,20.17,153.24,153.17,22.6638]
[1723094625230,80.3863,153.23,153.17,22.6638]
[1723094625399,73.86,153.23,153.17,22.6638]
[1723094626302,417.79,153.27,153.17,22.6638]
[1723094626703,6.5252,153.26,153.17,22.6638]
[1723094626909,0.8228107,153.28,153.17,51.3538]
[1723094627628,0.8228107,153.28,153.17,22.6638]
[1723094628335,65.8228107,153.28,153.17,22.6638]
[1723094628634,65.8228107,153.28,153.17,51.3538]
[1723094629932,45.8228107,153.28,153.18,0.17]
[1723094630232,0.8228107,153.28,153.23,28.69]
[1723094630429,0.8228107,153.28,153.25,21.6933]
[1723094630852,11.07453534,153.35,153.25,50.3833]
[1723094631007,11.07453534,153.35,153.26,1.30474652]
[1723094631335,11.07453534,153.35,153.25,50.3833]